[Event "Portugal Open 2019"]
[Site "Lisbon"]
[Date "2019.02.09"]
[Round "9.19"]
[White "Kaasen, Tor Fredrik"]
[Black "Lisowski, Krzysztof"]
[Result "1/2-1/2"]
[ECO "A18"]
[WhiteElo "2387"]
[BlackElo "2135"]
[Annotator "NA"]
[PlyCount "119"]
[EventDate "2019.01.25"]
[EventType "swiss"]
[EventCountry "POR"]
[SourceTitle "playchess.com"]
[Source "ChessBase"]
[SourceQuality "1"]
[TimeControl "5400+30"]

1. c4 {[%emt 0:02:45]} Nf6 {[%emt 0:00:00]} 2. Nc3 {[%emt 0:00:10]} e6 {[%emt 0:00:13]} 3. e4 {[%emt 0:00:23]} d5 {[%emt 0:00:38]} 4. e5 {[%emt 0:01:06]} d4 {[%emt 0:00:56]} 5. exf6 {[%emt 0:00:16]} dxc3 {[%emt 0:00:11]} 6. bxc3 {[%emt 0:00:05]} Qxf6 {[%emt 0:02:08]} 7. d4 {[%emt 0:00:13]} Nd7 {[%emt 0:20:28]} 8. Nf3 {[%emt 0:00:43]} h6 {[%emt 0:00:19]} 9. Bd3 {[%emt 0:00:54]} c5 {[%emt 0:07:50]} 10. O-O {[%emt 0:01:40]} Bd6 {[%emt 0:01:59]} 11. Nd2 {[%emt 0:03:26]} Qe7 {[%emt 0:08:11]} 12. Ne4 {[%emt 0:01:17]} Bc7 {[%emt 0:00:17]} 13. Qf3 {[%emt 0:06:28]} O-O {[%emt 0:01:33]} 14. Ba3 {[%emt 0:00:58]} b6 {[%emt 0:04:26]} 15. Nxc5 {[%emt 0:08:19]} Nxc5 {[%emt 0:01:36]} 16. dxc5 {[%emt 0:03:09]} bxc5 {[%emt 0:01:14]} 17. Rab1 {[%emt 0:03:39]} Rb8 {[%emt 0:01:25]} 18. Rxb8 {[%emt 0:02:23]} Bxb8 {[%emt 0:00:07]} 19. Rb1 {[%emt 0:00:10]} Bd6 {[%emt 0:10:01]} 20. g3 {[%emt 0:07:49]} f5 {[%emt 0:01:29]} 21. Bf1 {[%emt 0:03:07]} Qc7 {[%emt 0:08:54]} 22. Bg2 {[%emt 0:03:19]} Rd8 {[%emt 0:05:40]} 23. Qc6 {[%emt 0:05:10]} Qxc6 {[%emt 0:07:07]} 24. Bxc6 {[%emt 0:00:08]} Ba6 {[%emt 0:00:18]} 25. Bb5 {[%emt 0:01:29]} Rb8 {[%emt 0:00:12]} 26. Rd1 {[%emt 0:00:23]} Rb6 {[%emt 0:00:14]} 27. Bc1 {[%emt 0:03:56]} Be5 28. a4 Bxc3 29. Be3 Bxb5 {[%emt 0:10:44]} 30. Rd8+ {[%emt 0:11:25]} Kh7 {[%emt 0:00:44]} 31. axb5 {[%emt 0:05:03]} Bd4 {[%emt 0:02:21]} 32. Bxd4 {[%emt 0:06:28]} cxd4 {[%emt 0:00:04]} 33. Ra8 {[%emt 0:02:14]} d3 {[%emt 0:03:06]} 34. Kf1 {[%emt 0:02:24]} Rb7 {[%emt 0:00:39]} 35. Rc8 {[%emt 0:01:36]} Kg6 {[%emt 0:00:42]} 36. f4 {[%emt 0:00:48]} Kf7 {[%emt 0:01:11]} 37. Ke1 {[%emt 0:00:27]} Ke7 {[%emt 0:00:55]} 38. Kd2 {[%emt 0:00:08]} Rd7 {[%emt 0:00:24]} 39. Rc6 {[%emt 0:01:12]} Kf6 {[%emt 0:00:37]} 40. c5 {[%emt 0:00:24]} Rb7 {[%emt 0:00:17]} 41. b6 {[%emt 0:00:50]} axb6 {[%emt 0:00:04]} 42. Rxb6 {[%emt 0:01:11]} Rc7 {[%emt 0:00:49]} 43. Rb5 {[%emt 0:00:22]} Rd7 {[%emt 0:00:37]} 44. Rb3 {[%emt 0:00:30]} Rd5 {[%emt 0:00:41]} 45. Rb5 {[%emt 0:01:40]} Ke7 {[%emt 0:00:36]} 46. Rb7+ {[%emt 0:00:12]} Kf6 {[%emt 0:00:07]} 47. c6 {[%emt 0:01:26]} Rc5 {[%emt 0:00:17]} 48. c7 {[%emt 0:00:18]} Rc6 {[%emt 0:00:55]} 49. Kxd3 {[%emt 0:00:08]} g6 {[%emt 0:00:34]} 50. Kd4 {[%emt 0:00:06]} h5 {[%emt 0:00:15]} 51. Kd3 {[%emt 0:01:15]} Rc5 {[%emt 0:00:15]} 52. h3 {[%emt 0:01:13]} Rc6 {[%emt 0:00:12]} 53. Ke3 {[%emt 0:01:06]} Rc1 {[%emt 0:00:34]} 54. Kf3 {[%emt 0:01:32]} Rc3+ {[%emt 0:00:07]} 55. Ke2 {[%emt 0:00:05]} Rc6 {[%emt 0:01:13]} 56. Kf2 {[%emt 0:00:15]} Rc2+ {[%emt 0:00:08]} 57. Ke3 {[%emt 0:00:06]} Rc3+ {[%emt 0:00:12]} 58. Kd4 {[%emt 0:00:12]} Rc1 {[%emt 0:00:18]} 59. Ra7 {[%emt 0:00:56]} Rc2 {[%emt 0:00:32]} 60. Rb7 {[%emt 0:00:32] Ke5+ Ke4+} 1/2-1/2

[Event "Portugal Open 2019"]
[Site "Lisbon"]
[Date "2019.02.09"]
[Round "9.20"]
[White "Chinguun, Sumiya"]
[Black "Plichta, Kamil"]
[Result "0-1"]
[ECO "B03"]
[WhiteElo "2286"]
[BlackElo "2347"]
[Annotator "NA"]
[PlyCount "56"]
[EventDate "2019.01.25"]
[EventType "swiss"]
[EventCountry "POR"]
[SourceTitle "playchess.com"]
[Source "ChessBase"]
[SourceQuality "1"]
[TimeControl "5400+30"]

1. e4 {[%emt 0:00:00]} Nf6 {[%emt 0:00:00]} 2. e5 {[%emt 0:00:00]} Nd5 {[%emt 0:00:00]} 3. d4 {[%emt 0:00:00]} d6 {[%emt 0:00:00]} 4. c4 {[%emt 0:00:00]} Nb6 {[%emt 0:00:00]} 5. f4 {[%emt 0:00:00]} g5 {[%emt 0:01:57]} 6. Nc3 {[%emt 0:04:32]} gxf4 {[%emt 0:01:46]} 7. Bxf4 {[%emt 0:00:16]} dxe5 {[%emt 0:09:28]} 8. Bxe5 {[%emt 0:12:20]} Rg8 {[%emt 0:00:06]} 9. Qd3 {[%emt 0:00:50]} Nc6 {[%emt 0:01:44]} 10. Qxh7 {[%emt 0:02:24]} Nxe5 {[%emt 0:01:14]} 11. dxe5 {[%emt 0:03:44]} Rg7 {[%emt 0:00:18]} 12. Qc2 {[%emt 0:09:20]} c6 {[%emt 0:00:49]} 13. c5 {[%emt 0:03:45]} Nd7 {[%emt 0:00:42]} 14. O-O-O {[%emt 0:00:44]} Qa5 {[%emt 0:06:44]} 15. e6 {[%emt 0:20:17]} Nxc5 {[%emt 0:03:21]} 16. exf7+ {[%emt 0:00:15]} Rxf7 {[%emt 0:00:06]} 17. Bc4 {[%emt 0:00:19]} Rf6 {[%emt 0:00:59]} 18. Qe2 {[%emt 0:08:17]} Bf5 {[%emt 0:01:56]} 19. Nf3 {[%emt 0:02:01]} Bh6+ {[%emt 0:01:25]} 20. Nd2 {[%emt 0:00:08]} O-O-O {[%emt 0:02:14]} 21. Rhf1 {[%emt 0:03:42]} Rfd6 {[%emt 0:03:41]} 22. Rxf5 {[%emt 0:02:43]} Rxd2 {[%emt 0:03:10]} 23. Rxd2 {[%emt 0:04:02]} Rxd2 {[%emt 0:01:33]} 24. Be6+ {[%emt 0:00:55]} Kd8 {[%emt 0:02:18]} 25. Qxd2+ {[%emt 0:08:53]} Bxd2+ {[%emt 0:00:06]} 26. Kxd2 {[%emt 0:00:05]} Qb4 {[%emt 0:00:10]} 27. Bb3 {[%emt 0:00:33]} Qd4+ {[%emt 0:00:08]} 28. Ke1 {[%emt 0:00:54]} Qg1+ {[%emt 0:00:39]} 0-1

[Event "Portugal Open 2019"]
[Site "Lisbon"]
[Date "2019.02.09"]
[Round "9.21"]
[White "Martin Duque, Jesus"]
[Black "Ranaldi, Lucas"]
[Result "0-1"]
[ECO "B12"]
[WhiteElo "2393"]
[BlackElo "2229"]
[Annotator "NA"]
[PlyCount "109"]
[EventDate "2019.01.25"]
[EventType "swiss"]
[EventCountry "POR"]
[SourceTitle "playchess.com"]
[Source "ChessBase"]
[SourceQuality "1"]
[TimeControl "5400+30"]

1. e4 {[%emt 0:04:56]} c6 {[%emt 0:00:00]} 2. d4 {[%emt 0:00:04]} d5 {[%emt 0:00:00]} 3. e5 {[%emt 0:00:02]} Bf5 {[%emt 0:00:00]} 4. Nf3 {[%emt 0:00:04]} e6 {[%emt 0:00:00]} 5. Be2 {[%emt 0:00:03]} c5 {[%emt 0:00:00]} 6. Be3 {[%emt 0:00:09]} cxd4 {[%emt 0:00:00]} 7. Nxd4 {[%emt 0:00:05]} Ne7 {[%emt 0:00:06]} 8. c3 {[%emt 0:01:21]} Nbc6 {[%emt 0:01:29]} 9. f4 {[%emt 0:01:18]} Nxd4 {[%emt 0:07:22]} 10. Bxd4 {[%emt 0:06:37]} Nc6 {[%emt 0:12:04]} 11. Be3 {[%emt 0:01:34]} h5 {[%emt 0:05:44]} 12. O-O {[%emt 0:01:07]} h4 {[%emt 0:01:50]} 13. Nd2 {[%emt 0:01:03]} Be7 {[%emt 0:00:46]} 14. Nf3 {[%emt 0:02:58]} Rc8 {[%emt 0:03:43]} 15. b4 {[%emt 0:03:23]} a6 {[%emt 0:02:04]} 16. Rc1 {[%emt 0:02:39]} g6 {[%emt 0:02:24]} 17. a4 {[%emt 0:04:29]} Kf8 {[%emt 0:01:54]} 18. a5 {[%emt 0:03:36]} Kg7 {[%emt 0:08:04]} 19. Qb3 {[%emt 0:03:22]} Bg4 {[%emt 0:05:40]} 20. Qb2 {[%emt 0:06:02]} Qd7 {[%emt 0:02:01]} 21. Rfd1 {[%emt 0:00:44]} Rhd8 {[%emt 0:16:00]} 22. Bf2 {[%emt 0:01:11]} Rh8 {[%emt 0:00:21]} 23. h3 {[%emt 0:06:47]} Bxf3 {[%emt 0:01:37]} 24. Bxf3 {[%emt 0:00:08]} Rhd8 {[%emt 0:05:14]} 25. Bb6 {[%emt 0:18:31]} Rh8 {[%emt 0:02:20]} 26. Rb1 {[%emt 0:05:43]} Bd8 {[%emt 0:04:04]} 27. Bf2 {[%emt 0:00:08]} Ne7 {[%emt 0:00:46]} 28. Be2 {[%emt 0:02:55]} Qc6 {[%emt 0:03:06]} 29. Rbc1 {[%emt 0:00:21]} b5 {[%emt 0:00:21]} 30. axb6 {[%emt 0:01:26]} Bxb6 {[%emt 0:00:02]} 31. Bd3 {[%emt 0:00:43]} Qb7 {[%emt 0:03:23]} 32. Ra1 {[%emt 0:01:58]} Bxf2+ {[%emt 0:00:14]} 33. Kxf2 {[%emt 0:01:11]} Qb6+ {[%emt 0:00:53]} 34. Ke2 {[%emt 0:00:38]} Nf5 {[%emt 0:04:05]} 35. Bxf5 {[%emt 0:00:25]} gxf5 {[%emt 0:00:05]} 36. Rd4 {[%emt 0:01:56]} Rh6 {[%emt 0:00:18]} 37. Rad1 {[%emt 0:03:12]} Rg6 {[%emt 0:00:23]} 38. Kf1 {[%emt 0:00:16]} Rg3 {[%emt 0:02:36]} 39. R1d3 {[%emt 0:00:31]} Qb5 {[%emt 0:00:57]} 40. Qd2 {[%emt 0:00:30]} Kh6 {[%emt 0:04:53]} 41. Kg1 {[%emt 0:02:08]} Rcg8 {[%emt 0:00:08]} 42. Rxg3 {[%emt 0:00:47]} Rxg3 {[%emt 0:00:08]} 43. Kf2 {[%emt 0:01:19]} Qc6 {[%emt 0:01:54]} 44. Rd3 {[%emt 0:00:34]} d4 {[%emt 0:00:22]} 45. Rxg3 {[%emt 0:03:51]} hxg3+ {[%emt 0:00:02]} 46. Kf1 {[%emt 0:01:06]} Qc4+ {[%emt 0:02:57]} 47. Ke1 {[%emt 0:00:56]} dxc3 {[%emt 0:00:20]} 48. Qd8 {[%emt 0:00:28]} Qe4+ {[%emt 0:00:01]} 49. Kd1 {[%emt 0:00:09]} Qd5+ {[%emt 0:00:25]} 50. Qxd5 {[%emt 0:00:18]} exd5 {[%emt 0:00:02]} 51. Kc2 {[%emt 0:00:57]} d4 {[%emt 0:00:06]} 52. Kd3 {[%emt 0:00:16]} Kg7 {[%emt 0:00:04]} 53. Kc2 {[%emt 0:00:15]} Kf8 {[%emt 0:00:13]} 54. Kd3 {[%emt 0:00:03]} Ke7 {[%emt 0:00:05]} 55. Kxd4 0-1

[Event "Portugal Open 2019"]
[Site "Lisbon"]
[Date "2019.02.09"]
[Round "9.22"]
[White "Garcia Dorado, Alberto"]
[Black "Damaso, Rui"]
[Result "1/2-1/2"]
[ECO "A40"]
[WhiteElo "2223"]
[BlackElo "2439"]
[Annotator "NA"]
[PlyCount "88"]
[EventDate "2019.01.25"]
[EventType "swiss"]
[EventCountry "POR"]
[SourceTitle "playchess.com"]
[Source "ChessBase"]
[SourceQuality "1"]
[TimeControl "5400+30"]

1. d4 {[%emt 0:06:26]} Nf6 {[%emt 0:00:00]} 2. c4 {[%emt 0:00:10]} e6 {[%emt 0:00:02]} 3. g3 {[%emt 0:00:08]} c5 {[%emt 0:00:24]} 4. Nf3 {[%emt 0:02:20]} cxd4 {[%emt 0:00:20]} 5. Nxd4 {[%emt 0:00:09]} d5 {[%emt 0:00:30]} 6. Bg2 {[%emt 0:00:40]} e5 {[%emt 0:00:18]} 7. Nf3 {[%emt 0:00:25]} d4 {[%emt 0:00:12]} 8. O-O {[%emt 0:00:13]} Nc6 {[%emt 0:00:20]} 9. e3 {[%emt 0:01:39]} Bc5 {[%emt 0:02:27]} 10. exd4 {[%emt 0:00:58]} exd4 {[%emt 0:00:19]} 11. Bg5 {[%emt 0:07:14]} O-O {[%emt 0:26:45]} 12. Nbd2 {[%emt 0:02:29]} h6 $11 {[%emt 0:03:09]} 13. Bxf6 {[%emt 0:01:53]} Qxf6 {[%emt 0:01:39]} 14. Ne4 {[%emt 0:00:07]} Qe7 {[%emt 0:00:20]} 15. Nxc5 {[%emt 0:00:25]} Qxc5 {[%emt 0:00:04]} 16. b3 {[%emt 0:00:26]} Bg4 {[%emt 0:01:36]} 17. h3 {[%emt 0:02:13]} Bh5 {[%emt 0:07:18]} 18. Qd2 {[%emt 0:01:12]} Rad8 {[%emt 0:01:59]} 19. Rfe1 {[%emt 0:11:34]} Rd6 {[%emt 0:04:44]} 20. g4 {[%emt 0:06:10]} Bg6 {[%emt 0:03:25]} 21. Nh4 {[%emt 0:00:39]} d3 {[%emt 0:01:28]} 22. Nxg6 {[%emt 0:11:10]} fxg6 {[%emt 0:00:40]} 23. Bxc6 {[%emt 0:00:59]} bxc6 {[%emt 0:02:02]} 24. Re3 {[%emt 0:00:49]} h5 {[%emt 0:00:32]} 25. Rg3 {[%emt 0:18:38]} hxg4 {[%emt 0:07:03]} 26. hxg4 {[%emt 0:01:07]} Qd4 {[%emt 0:04:13]} 27. Rd1 {[%emt 0:02:26]} Re6 {[%emt 0:22:50]} 28. Rxd3 {[%emt 0:03:52]} Qxg4+ {[%emt 0:00:06]} 29. Rg3 {[%emt 0:00:08]} Qh5 {[%emt 0:00:37]} 30. Re1 {[%emt 0:04:13]} Ref6 {[%emt 0:01:09]} 31. Rg2 {[%emt 0:04:53]} Rf3 {[%emt 0:02:19]} 32. Qe2 {[%emt 0:01:59]} R8f6 {[%emt 0:02:00]} 33. Qe8+ {[%emt 0:03:18]} Kh7 {[%emt 0:00:09]} 34. Rh2 {[%emt 0:01:00]} Rh3 {[%emt 0:00:07]} 35. Rxh3 {[%emt 0:00:21]} Qxh3 {[%emt 0:00:04]} 36. Re3 {[%emt 0:00:22]} Qf5 {[%emt 0:01:35]} 37. Re2 {[%emt 0:01:11]} Qg4+ {[%emt 0:00:07]} 38. Kf1 {[%emt 0:00:20]} Qh3+ {[%emt 0:00:32]} 39. Ke1 {[%emt 0:00:56]} Qc3+ {[%emt 0:01:25]} 40. Kf1 {[%emt 0:00:22]} Qh3+ {[%emt 0:02:17]} 41. Ke1 {[%emt 0:00:05]} Qh1+ {[%emt 0:02:16]} 42. Kd2 {[%emt 0:00:10]} Rd6+ {[%emt 0:00:05]} 43. Kc3 {[%emt 0:00:25]} c5 {[%emt 0:00:11]} 44. Kb2 {[%emt 0:00:56]} Qh4 1/2-1/2

[Event "Portugal Open 2019"]
[Site "Lisbon"]
[Date "2019.02.09"]
[Round "9.23"]
[White "Rego, Pedro Filipe"]
[Black "Campora, Daniel H."]
[Result "1/2-1/2"]
[ECO "C47"]
[WhiteElo "2228"]
[BlackElo "2419"]
[Annotator "NA"]
[PlyCount "98"]
[EventDate "2019.01.25"]
[EventType "swiss"]
[EventCountry "POR"]
[SourceTitle "playchess.com"]
[Source "ChessBase"]
[SourceQuality "1"]
[TimeControl "5400+30"]

1. e4 {[%emt 0:00:00]} e5 {[%emt 0:00:00]} 2. Nf3 {[%emt 0:00:00]} Nc6 {[%emt 0:00:00]} 3. Nc3 {[%emt 0:00:00]} Nf6 {[%emt 0:00:03]} 4. a3 {[%emt 0:00:02]} d6 {[%emt 0:00:46]} 5. Bc4 {[%emt 0:02:53]} Be7 {[%emt 0:00:45]} 6. d3 {[%emt 0:01:18]} O-O {[%emt 0:00:16]} 7. h3 {[%emt 0:03:02]} Be6 {[%emt 0:00:20]} 8. Nd5 {[%emt 0:01:18] C55: Two Knights: 4 d3, 4 d4 exd4 5 e5 and Max Lange Attack} Bxd5 {[%emt 0:03:05]} 9. exd5 {[%emt 0:00:09]} Nd4 {[%emt 0:02:44]} 10. Nxd4 {[%emt 0:06:02]} exd4 {[%emt 0:00:08]} 11. O-O {[%emt 0:03:05]} Nd7 {[%emt 0:00:28]} 12. Bd2 {[%emt 0:01:59]} Bf6 {[%emt 0:00:12]} 13. f4 {[%emt 0:02:39]} (13. a4 a5 14. g3 Qc8 15. Kg2 c6 {0-1 (66) Salomon,J (2477)-Jones,G (2677) Batumi 2018}) 13... c6 $146 {[%emt 0:08:36]} ({Predecessor:} 13... g6 14. Be1 c5 15. dxc6 bxc6 {1-0 (44) Markovic,M (2319)-Arsenovic,M (2120) Belgrade 2016}) 14. Qf3 {[%emt 0:03:19]} b5 {[%emt 0:04:40]} 15. Bb3 {[%emt 0:08:09]} c5 {[%emt 0:00:29]} 16. a4 {[%emt 0:07:06]} a6 {[%emt 0:00:14]} 17. axb5 {[%emt 0:00:30]} axb5 {[%emt 0:00:07]} 18. Qg4 {[%emt 0:01:31]} Qc7 {[%emt 0:00:55]} 19. Kh2 {[%emt 0:05:42]} h6 {[%emt 0:08:56]} 20. Rfe1 {[%emt 0:04:11]} g6 $15 {[%emt 0:05:21]} 21. Qe2 {[%emt 0:06:06]} Kg7 {[%emt 0:02:16]} 22. Qf1 {[%emt 0:09:41]} Bh4 {[%emt 0:00:36]} 23. g3 {[%emt 0:00:21]} Bf6 {[%emt 0:00:05]} 24. h4 {[%emt 0:01:13]} h5 {[%emt 0:00:30]} 25. Kg2 {[%emt 0:04:06]} Rfe8 {[%emt 0:01:12]} 26. Rxe8 {[%emt 0:02:28]} Rxe8 {[%emt 0:00:04]} 27. Ra6 {[%emt 0:00:19]} Nb8 {[%emt 0:01:09]} 28. Ra1 {[%emt 0:01:20]} Qd7 {[%emt 0:01:19]} 29. Re1 {[%emt 0:03:29]} Rc8 {[%emt 0:01:26]} 30. c3 {[%emt 0:02:57]} dxc3 {[%emt 0:06:37]} 31. Bxc3 {[%emt 0:00:24]} Qf5 {[%emt 0:00:46]} 32. Qe2 {[%emt 0:05:01]} Nd7 {[%emt 0:03:25]} 33. Qe4 {[%emt 0:03:18]} b4 {[%emt 0:02:23]} 34. Qxf5 {[%emt 0:01:02]} gxf5 {[%emt 0:00:05]} 35. Bxf6+ {[%emt 0:00:03]} Nxf6 {[%emt 0:00:07]} 36. Ba4 {[%emt 0:04:40]} Rc7 {[%emt 0:03:45]} 37. Bc6 {[%emt 0:00:19]} Ra7 {[%emt 0:00:05]} 38. Kf3 {[%emt 0:02:41]} Ra2 {[%emt 0:01:00]} 39. Rb1 {[%emt 0:00:50]} Ng8 {[%emt 0:01:39]} 40. Bb5 {[%emt 0:00:48]} Nf6 {[%emt 0:01:32]} 41. Bc4 {[%emt 0:00:18]} Ra7 {[%emt 0:01:50]} 42. Ke3 {[%emt 0:01:21]} Ng4+ {[%emt 0:00:31]} 43. Kd2 {[%emt 0:02:19]} Kf6 {[%emt 0:00:15]} 44. Re1 {[%emt 0:00:39]} Ra8 {[%emt 0:00:03]} 45. Re2 {[%emt 0:00:52]} Ra7 {[%emt 0:07:15]} 46. Bb3 {[%emt 0:00:23]} Ra1 {[%emt 0:00:53]} 47. Re1 {[%emt 0:00:42]} Ra8 {[%emt 0:01:06]} 48. Re2 {[%emt 0:00:07]} Ra1 {[%emt 0:01:24]} 49. Re1 {[%emt 0:00:05]} Ra8 {[%emt 0:00:30]} 1/2-1/2

[Event "Portugal Open 2019"]
[Site "Lisbon"]
[Date "2019.02.09"]
[Round "9.25"]
[White "Alvarez Serrano, Carlos"]
[Black "Di Nicolantonio, Lucas"]
[Result "0-1"]
[ECO "A89"]
[WhiteElo "2201"]
[BlackElo "2364"]
[Annotator "NA"]
[PlyCount "94"]
[EventDate "2019.01.25"]
[EventType "swiss"]
[EventCountry "POR"]
[SourceTitle "playchess.com"]
[Source "ChessBase"]
[SourceQuality "1"]
[TimeControl "5400+30"]

1. Nf3 {[%emt 0:05:38]} d6 {[%emt 0:00:29]} 2. d4 {[%emt 0:01:24]} g6 {[%emt 0:00:37]} 3. g3 {[%emt 0:01:16]} Bg7 {[%emt 0:00:08]} 4. Bg2 {[%emt 0:00:05]} f5 {[%emt 0:00:35]} 5. c4 {[%emt 0:01:02]} Nf6 {[%emt 0:00:15]} 6. Nc3 {[%emt 0:00:23]} O-O {[%emt 0:00:25]} 7. O-O {[%emt 0:00:05]} Nc6 {[%emt 0:04:02]} 8. d5 {[%emt 0:03:25]} Ne5 {[%emt 0:00:18]} 9. Nd2 {[%emt 0:06:59]} c5 {[%emt 0:05:24]} 10. f4 {[%emt 0:02:49]} Neg4 {[%emt 0:03:21]} 11. Nb3 {[%emt 0:01:30]} Bd7 {[%emt 0:03:34]} 12. h3 {[%emt 0:01:23]} Nh6 {[%emt 0:00:10]} 13. Nd2 {[%emt 0:02:46]} a6 {[%emt 0:08:20]} 14. a4 {[%emt 0:04:03]} b6 {[%emt 0:05:24]} 15. Nf3 {[%emt 0:01:12]} Nf7 {[%emt 0:02:44]} 16. Qd3 {[%emt 0:00:09]} Rb8 {[%emt 0:09:17]} 17. Re1 {[%emt 0:11:04]} Re8 {[%emt 0:06:00]} 18. Kh2 {[%emt 0:01:40]} e5 {[%emt 0:04:43]} 19. dxe6 {[%emt 0:01:23]} Bxe6 {[%emt 0:01:54]} 20. Ng5 {[%emt 0:03:07]} Nxg5 {[%emt 0:04:16]} 21. fxg5 {[%emt 0:00:02]} Nd7 {[%emt 0:09:21]} 22. Nd5 {[%emt 0:04:19]} Ne5 {[%emt 0:01:18]} 23. Qc2 {[%emt 0:00:01]} Kh8 {[%emt 0:04:37]} 24. Bd2 {[%emt 0:01:59]} b5 {[%emt 0:00:26]} 25. axb5 {[%emt 0:04:08]} axb5 {[%emt 0:00:04]} 26. cxb5 {[%emt 0:12:45]} Rxb5 {[%emt 0:00:08]} 27. Ra2 {[%emt 0:08:27]} c4 {[%emt 0:04:51]} 28. Nc3 {[%emt 0:02:23]} Rb8 {[%emt 0:01:25]} 29. Nd5 {[%emt 0:02:20]} Rb5 {[%emt 0:00:14]} 30. Nc3 {[%emt 0:00:01]} Rb8 {[%emt 0:00:03]} 31. Nd5 {[%emt 0:00:08]} Bxd5 {[%emt 0:06:42]} 32. Bxd5 {[%emt 0:00:01]} Qb6 {[%emt 0:00:10]} 33. Kg2 {[%emt 0:02:44]} Qd4 {[%emt 0:00:32]} 34. e4 {[%emt 0:05:42]} Nd3 {[%emt 0:00:13]} 35. Re2 {[%emt 0:00:09]} Qxd5 {[%emt 0:06:13]} 36. exd5 {[%emt 0:01:40]} Rxe2+ {[%emt 0:00:05]} 37. Kf1 {[%emt 0:01:28]} Rbe8 {[%emt 0:04:58]} 38. Ra3 {[%emt 0:05:49]} Rf2+ {[%emt 0:03:20]} 39. Kg1 {[%emt 0:00:01]} Bd4 {[%emt 0:01:44]} 40. Qxc4 {[%emt 0:02:21]} Rf4+ {[%emt 0:01:02]} 41. Qxd4+ {[%emt 0:00:14]} Rxd4 {[%emt 0:00:06]} 42. Bc3 {[%emt 0:00:01]} Ree4 {[%emt 0:00:40]} 43. Ra4 {[%emt 0:00:37]} Ne5 {[%emt 0:00:18]} 44. Bxd4 {[%emt 0:01:15]} Rxd4 {[%emt 0:00:07]} 45. Rxd4 {[%emt 0:00:04]} Nf3+ {[%emt 0:00:03]} 46. Kf2 {[%emt 0:00:07]} Nxd4 {[%emt 0:00:03]} 47. b4 {[%emt 0:00:19]} Kg7 {[%emt 0:00:12]} 0-1

[Event "Portugal Open 2019"]
[Site "Lisbon"]
[Date "2019.02.09"]
[Round "9.26"]
[White "Miedema, David"]
[Black "Palozza, Christian"]
[Result "1-0"]
[ECO "B12"]
[WhiteElo "2356"]
[BlackElo "2237"]
[Annotator "NA"]
[PlyCount "143"]
[EventDate "2019.01.25"]
[EventType "swiss"]
[EventCountry "POR"]
[SourceTitle "playchess.com"]
[Source "ChessBase"]
[SourceQuality "1"]
[TimeControl "5400+30"]

1. e4 {[%emt 0:00:00]} c6 {[%emt 0:02:03]} 2. d4 {[%emt 0:00:00]} d5 {[%emt 0:00:02]} 3. e5 {[%emt 0:00:00]} c5 {[%emt 0:00:02]} 4. dxc5 {[%emt 0:00:00]} e6 {[%emt 0:00:03]} 5. Qg4 {[%emt 0:01:56]} Nd7 {[%emt 0:04:52]} 6. Nf3 {[%emt 0:00:10]} h5 {[%emt 0:00:54]} 7. Qf4 {[%emt 0:00:37]} Nxc5 {[%emt 0:05:15]} 8. b4 {[%emt 0:03:45]} Ne4 {[%emt 0:05:44]} 9. a3 {[%emt 0:06:56]} a5 {[%emt 0:00:35]} 10. b5 {[%emt 0:01:10]} Qc7 {[%emt 0:20:59]} 11. Bd3 {[%emt 0:00:37]} g5 {[%emt 0:02:58]} 12. Qe3 {[%emt 0:00:25]} g4 {[%emt 0:11:07]} 13. Bxe4 {[%emt 0:00:33]} dxe4 {[%emt 0:00:47]} 14. Nfd2 {[%emt 0:03:34]} Qxe5 {[%emt 0:00:50]} 15. Ra2 {[%emt 0:01:26]} Bh6 {[%emt 0:03:22]} 16. Qe2 {[%emt 0:00:10]} e3 {[%emt 0:02:47]} 17. fxe3 {[%emt 0:00:05]} Qxe3 {[%emt 0:00:27]} 18. Bb2 {[%emt 0:00:26]} Rh7 {[%emt 0:01:32]} 19. Nc4 {[%emt 0:00:59]} Qxe2+ {[%emt 0:09:46]} 20. Kxe2 {[%emt 0:00:03]} f6 {[%emt 0:00:04]} 21. Nc3 {[%emt 0:05:13]} e5 {[%emt 0:01:13]} 22. Nb6 {[%emt 0:00:36]} Rb8 {[%emt 0:00:04]} 23. Ne4 {[%emt 0:00:11]} Be6 {[%emt 0:01:29]} 24. c4 {[%emt 0:00:04]} Rd8 {[%emt 0:03:24]} 25. Bc3 {[%emt 0:00:43]} Rc7 {[%emt 0:00:32]} 26. Bxa5 {[%emt 0:01:29]} Bxc4+ {[%emt 0:00:36]} 27. Nxc4 {[%emt 0:00:10]} Rxc4 {[%emt 0:00:04]} 28. Ng3 {[%emt 0:05:10]} Ra8 {[%emt 0:00:46]} 29. Bb6 {[%emt 0:01:20]} Ne7 {[%emt 0:02:02]} 30. Rd1 {[%emt 0:00:56]} Kf7 {[%emt 0:06:39]} 31. Rd7 {[%emt 0:04:34]} Ke6 {[%emt 0:00:04]} 32. Rxb7 {[%emt 0:00:49]} h4 {[%emt 0:01:42]} 33. Rxe7+ {[%emt 0:04:25]} Kxe7 {[%emt 0:00:04]} 34. Nf5+ {[%emt 0:00:02]} Ke6 {[%emt 0:00:05]} 35. Nxh6 {[%emt 0:00:04]} Rb8 {[%emt 0:00:03]} 36. Bf2 {[%emt 0:00:53]} Rxb5 {[%emt 0:00:20]} 37. Bxh4 {[%emt 0:00:57]} Ra4 {[%emt 0:01:53]} 38. Rc2 {[%emt 0:01:30]} Rxa3 {[%emt 0:01:47]} 39. Rc6+ {[%emt 0:00:03]} Kd5 {[%emt 0:00:06]} 40. Rc2 {[%emt 0:00:04]} Ke6 {[%emt 0:00:20]} 41. Rc6+ {[%emt 0:01:24]} Kd5 {[%emt 0:00:04]} 42. Rc2 {[%emt 0:00:03]} Ke6 {[%emt 0:00:23]} 43. Be1 {[%emt 0:08:49]} f5 {[%emt 0:01:01]} 44. Rc6+ {[%emt 0:00:00]} Kd5 {[%emt 0:00:11]} 45. Rf6 {[%emt 0:00:00]} Ra2+ {[%emt 0:09:03]} 46. Kf1 {[%emt 0:00:00]} Rb1 {[%emt 0:00:38]} 47. Nxf5 {[%emt 0:00:00]} Raa1 {[%emt 0:00:25]} 48. Ne3+ {[%emt 0:00:00]} Kc5 {[%emt 0:01:19]} 49. Nc2 {[%emt 0:00:00]} Ra2 {[%emt 0:00:04]} 50. Rf8 {[%emt 0:00:00]} Kc4 {[%emt 0:00:12]} 51. Rc8+ {[%emt 0:00:28]} Kb3 {[%emt 0:01:19]} 52. Ne3 {[%emt 0:00:05]} Ra4 {[%emt 0:00:47]} 53. Rb8+ {[%emt 0:02:27]} Ka2 {[%emt 0:00:05]} 54. Rxb1 {[%emt 0:01:00]} Kxb1 {[%emt 0:00:04]} 55. Bc3 {[%emt 0:01:01]} Kc1 {[%emt 0:00:58]} 56. Ke2 {[%emt 0:00:20]} e4 {[%emt 0:00:33]} 57. Bd2+ {[%emt 0:00:14]} Kb2 {[%emt 0:00:03]} 58. Nxg4 {[%emt 0:00:07]} Kb3 {[%emt 0:00:18]} 59. Ne3 {[%emt 0:01:12]} Ra8 {[%emt 0:00:17]} 60. h4 {[%emt 0:00:13]} Rh8 {[%emt 0:00:25]} 61. Be1 {[%emt 0:00:46]} Ka4 {[%emt 0:00:07]} 62. g4 {[%emt 0:00:13]} Kb5 {[%emt 0:00:03]} 63. h5 {[%emt 0:00:07]} Kc6 {[%emt 0:00:05]} 64. Bc3 {[%emt 0:00:05]} Rh7 {[%emt 0:00:10]} 65. Nf5 {[%emt 0:00:14]} Kd5 {[%emt 0:00:12]} 66. Bg7 {[%emt 0:00:07]} Ke6 {[%emt 0:00:10]} 67. Ke3 {[%emt 0:00:12]} Kf7 {[%emt 0:00:17]} 68. Kxe4 {[%emt 0:00:13]} Ke6 {[%emt 0:00:03]} 69. Kf4 {[%emt 0:00:11]} Kf7 {[%emt 0:00:07]} 70. Kg5 {[%emt 0:00:21]} Kg8 {[%emt 0:00:05]} 71. Kg6 {[%emt 0:00:18]} Rxh5 {[%emt 0:00:21]} 72. Ne7# {[%emt 0:00:36]} 1-0